lending/lending_fUSD_20250819
["ID","MTS","AMOUNT","RATE_DAILY","PERIOD"]
[380273310,1755630874679,-1065.74,0.00024643,30]
[380273311,1755630874754,-575.07,0.00024643,30]
[380273312,1755630874827,-498.22,0.00024643,30]
[380273313,1755630874897,-400.0,0.00024643,30]
[380273314,1755630874971,-400.0,0.00024643,30]
[380273315,1755630875048,-400.0,0.00024643,30]
[380273316,1755630875122,-6511.48,0.00024643,30]
[380273317,1755630875196,-2210.73,0.00024643,30]
[380273318,1755630875283,-2425.08,0.00024643,30]
[380273319,1755630875353,-590.81,0.00024643,30]
[380273320,1755630875422,-752.39,0.00024643,30]
[380273321,1755630875490,-463.19,0.00024643,30]
[380273322,1755630875558,-400.0,0.00024643,30]
[380273323,1755630875626,-1561.3,0.00024643,30]
[380273324,1755630875694,-1742.71,0.00024643,30]
[380273325,1755630875761,-400.0,0.00024643,30]
[380273326,1755630875828,-1227.79,0.00024643,30]
[380273327,1755630875890,-400.0,0.00024643,30]
[380273328,1755630875955,-400.0,0.00024643,30]
[380273329,1755630876293,-400.0,0.00024643,30]
[380273330,1755630876363,-944.83,0.00024643,30]
[380273331,1755630876431,-400.0,0.00024643,30]
[380273332,1755630876497,-1256.14,0.00024643,30]
[380273333,1755630876560,-2403.42,0.00024643,30]
[380273334,1755630876625,-12558.9,0.00024643,30]
[380273335,1755630876687,-400.0,0.00024643,30]
[380273336,1755630876756,-1406.06,0.00024643,30]
[380273337,1755630876819,-1252.64,0.00024643,30]
[380273338,1755630876878,-1348.48,0.00024643,30]
[380273339,1755630876937,-2108.64,0.00024643,30]
[380273340,1755630876995,-2011.64,0.00024643,30]
[380273341,1755630877056,-2694.66,0.00024643,30]
[380273342,1755630877117,-400.0,0.00024643,30]
[380273343,1755630877179,-771.77,0.00024643,30]
[380273344,1755630877246,-1676.47,0.00024643,30]
[380273345,1755630877313,-2147.28,0.00024643,30]
[380273346,1755630877377,-400.0,0.00024643,30]
[380273347,1755630877440,-400.0,0.00024643,30]
[380273348,1755630877501,-1004.69,0.00024643,30]
[380273349,1755630877562,-400.0,0.00024643,30]
[380273350,1755630877621,-400.0,0.00024643,30]
[380273351,1755630877680,-400.0,0.00024643,30]
[380273352,1755630877741,-759.13,0.00024643,30]
[380273353,1755630877800,-1766.6,0.00024643,30]
[380273354,1755630877858,-2391.14,0.00024643,30]
[380273355,1755630877916,-764.46,0.00024643,30]
[380273356,1755630877979,-2045.43,0.00024643,30]
[380273357,1755630878046,-2644.5,0.00024643,30]
[380273358,1755630878115,-1321.22,0.00024643,30]
[380273359,1755630878185,-400.0,0.00024643,30]
[380273360,1755630878253,-1028.93,0.00024643,30]
[380273361,1755630878336,-2587.83,0.00024643,30]
[380273362,1755630878412,-574.26,0.00024643,30]
[380273363,1755630878479,-400.0,0.00024643,30]
[380273364,1755630878547,-414.53,0.00024643,30]
[380273365,1755630878630,-1609.98,0.00024643,30]
[380273366,1755630878693,-1988.32,0.00024643,30]
[380273367,1755630878760,-828.08,0.00024643,30]
[380273368,1755630878821,-400.0,0.00024643,30]
[380273369,1755630878881,-402.0,0.00024643,30]
[380273370,1755630878939,-3327.81,0.00024643,30]
[380273371,1755630878999,-2274.92,0.00024643,30]
[380273372,1755630879064,-2635.88,0.00024643,30]
[380273373,1755630879129,-1675.13,0.00024643,30]
[380273374,1755630879196,-3966.88,0.00024643,30]
[380273375,1755630879265,-400.0,0.00024643,30]
[380273376,1755630879335,-400.0,0.00024643,30]
[380273377,1755630879401,-400.0,0.00024643,30]
[380273378,1755630879466,-633.22,0.00024643,30]
[380273379,1755630879528,-400.0,0.00024643,30]
[380273380,1755630879592,-400.0,0.00024643,30]
[380273381,1755630879655,-2597.2,0.00024643,30]
[380273382,1755630879718,-1129.6,0.00024643,30]
[380273383,1755630879784,-1454.3,0.00024643,30]
[380273384,1755630879847,-400.0,0.00024643,30]
[380273385,1755630879910,-892.58,0.00024643,30]
[380273386,1755630879971,-704.57,0.00024643,30]
[380273387,1755630880036,-1389.72,0.00024643,30]
[380273388,1755630880103,-1626.22,0.00024643,30]
[380273389,1755630880174,-400.0,0.00024643,30]
[380273390,1755630880249,-402.52,0.00024643,30]
[380273391,1755630880325,-758.46,0.00024643,30]
[380273392,1755630880398,-1948.15,0.00024643,30]
[380273393,1755630880472,-646.97,0.00024643,30]
[380273394,1755630880540,-1767.01,0.00024643,30]
[380273395,1755630880608,-2232.67,0.00024643,30]
[380273396,1755630880675,-1951.89,0.00024643,30]
[380273397,1755630880742,-1978.37,0.00024643,30]
[380273398,1755630880807,-1713.52,0.00024643,30]
[380273399,1755630880878,-988.17,0.00024643,30]
[380273400,1755630880942,-452.3,0.00024643,30]
[380273401,1755630881007,-1178.32,0.00024643,30]
[380273402,1755630881074,-400.0,0.00024643,30]
[380273403,1755630881141,-474.04,0.00024643,30]
[380273404,1755630881210,-400.0,0.00024643,30]
[380273405,1755630881280,-400.0,0.00024643,30]
[380273406,1755630881352,-2626.25,0.00024643,30]
[380273407,1755630881420,-400.0,0.00024643,30]
[380273408,1755630881485,-2345.23,0.00024643,30]
[380273409,1755630881550,-400.0,0.00024643,30]
[380273410,1755630881612,-843.54,0.00024643,30]
[380273411,1755630881674,-2199.04,0.00024643,30]
[380273412,1755630881736,-400.0,0.00024643,30]
[380273413,1755630881798,-3426.21,0.00024643,30]
[380273414,1755630881858,-400.0,0.00024643,30]
[380273415,1755630881916,-2339.85,0.00024643,30]
[380273416,1755630881975,-1431.42,0.00024643,30]
[380273417,1755630882035,-400.0,0.00024643,30]
[380273418,1755630882101,-1879.73,0.00024643,30]
[380273419,1755630882169,-2605.4,0.00024643,30]
[380273420,1755630882236,-2170.2,0.00024643,30]
[380273421,1755630882304,-2965.05,0.00024643,30]
[380273422,1755630882371,-400.0,0.00024643,30]
[380273423,1755630882438,-1003.58,0.00024643,30]
[380273424,1755630882502,-1775.32,0.00024643,30]
[380273425,1755630882565,-667.84,0.00024643,30]
[380273426,1755630882627,-781.97,0.00024643,30]
[380273427,1755630882689,-2499.51,0.00024643,30]
[380273428,1755630882753,-400.0,0.00024643,30]
[380273429,1755630882811,-657.01,0.00024643,30]
[380273430,1755630882872,-400.0,0.00024643,30]
[380273431,1755630882936,-400.0,0.00024643,30]
[380273432,1755630882996,-400.0,0.00024643,30]
[380273433,1755630883062,-1626.0,0.00024643,30]
[380273434,1755630883129,-834.1,0.00024643,30]
[380273435,1755630883198,-762.72,0.00024643,30]
[380273436,1755630883266,-400.0,0.00024643,30]
[380273437,1755630883334,-812.96,0.00024643,30]
[380273438,1755630883398,-1795.88,0.00024643,30]
[380273439,1755630883463,-812.84,0.00024643,30]
[380273440,1755630883526,-400.0,0.00024643,30]
[380273441,1755630883588,-2037.62,0.00024643,30]
[380273442,1755630883651,-400.0,0.00024643,30]
[380273443,1755630883721,-2089.8,0.00024643,30]
[380273444,1755630883785,-400.0,0.00024643,30]
[380273445,1755630884116,-400.0,0.00024643,30]
[380273446,1755630884187,-912.15,0.00024643,30]
[380273447,1755630884256,-1867.16,0.00024643,30]
[380273448,1755630884324,-927.26,0.00024643,30]
[380273449,1755630884391,-400.0,0.00024643,30]
[380273450,1755630884457,-1264.15,0.00024643,30]
[380273451,1755630884521,-1632.29,0.00024643,30]
[380273452,1755630884585,-1147.83,0.00024643,30]
[380273453,1755630884649,-822.45,0.00024643,30]
[380273454,1755630884713,-400.0,0.00024643,30]
[380273455,1755630884776,-2642.11,0.00024643,30]
[380273456,1755630884839,-400.0,0.00024643,30]
[380273457,1755630884900,-437.64,0.00024643,30]
[380273458,1755630884964,-400.0,0.00024643,30]
[380273459,1755630885029,-854.72,0.00024643,30]
[380273460,1755630885095,-2923.07,0.00024643,30]
[380273461,1755630885165,-2401.94,0.00024643,30]
[380273462,1755630885233,-400.0,0.00024643,30]
[380273463,1755630885301,-531.2,0.00024643,30]
[380273464,1755630885368,-400.0,0.00024643,30]
[380273465,1755630885435,-888.25,0.00024643,30]
[380273466,1755630885501,-842.32,0.00024643,30]
[380273467,1755630885564,-1920.95,0.00024643,30]
[380273468,1755630885628,-517.75846361,0.00024643,30]
[380273469,1755630885691,-1522.14,0.00024643,30]
[380273470,1755630885758,-1843.66,0.00024643,30]
[380273471,1755630885826,-589.48,0.00024643,30]
[380273472,1755630885892,-1357.11,0.00024643,30]
[380273473,1755630885955,-1090.36,0.00024643,30]
[380273474,1755630886019,-400.0,0.00024643,30]
[380273475,1755630886081,-400.0,0.00024643,30]
[380273476,1755630886144,-2036.5,0.00024643,30]
[380273477,1755630886221,-2160.01,0.00024643,30]
[380273478,1755630886300,-733.36,0.00024643,30]
[380273479,1755630886367,-1567.0,0.00024643,30]
[380273480,1755630886432,-172.08223648,0.00024643,30]
[380273481,1755630886499,-2269.73,0.00024643,30]
[380273482,1755630886567,-7066.74,0.00024643,30]
[380273483,1755630886629,-2339.92,0.00024643,30]
[380273484,1755630886690,-400.0,0.00024643,30]
[380273485,1755630886755,-400.0,0.00024643,30]
[380273486,1755630886816,-1713.64,0.00024643,30]
[380273487,1755630886873,-530.76,0.00024643,30]
[380273488,1755630886929,-1159.8,0.00024643,30]
[380273489,1755630886986,-400.0,0.00024643,30]
[380273490,1755630887047,-400.0,0.00024643,30]
[380273491,1755630887114,-594.02,0.00024643,30]
[380273492,1755630887181,-2161.34,0.00024643,30]
[380273493,1755630887247,-785.37,0.00024643,30]
[380273494,1755630887308,-925.07,0.00024643,30]
[380273495,1755630887374,-400.0,0.00024643,30]
[380273496,1755630887438,-1533.15,0.00024643,30]
[380273497,1755630887498,-1094.8,0.00024643,30]
[380273498,1755630887557,-827.42,0.00024643,30]
[380273499,1755630887613,-400.0,0.00024643,30]
[380273500,1755630887671,-1481.14,0.00024643,30]
[380273501,1755630887730,-400.0,0.00024643,30]
[380273502,1755630887789,-400.0,0.00024643,30]
[380273503,1755630887846,-424.97,0.00024643,30]
[380273504,1755630887901,-2049.37,0.00024643,30]
[380273505,1755630887958,-400.0,0.00024643,30]
[380273506,1755630888015,-535.14,0.00024643,30]
[380273507,1755630888078,-2172.05,0.00024643,30]
[380273508,1755630888143,-400.0,0.00024643,30]
[380273509,1755630888209,-1532.6,0.00024643,30]
[380273510,1755630888277,-831.55,0.00024643,30]
[380273511,1755630888348,-853.09,0.00024643,30]
[380273512,1755630888431,-1512.48,0.00024643,30]
[380273513,1755630888499,-400.0,0.00024643,30]
[380273514,1755630888564,-757.23,0.00024643,30]
[380273515,1755630888624,-400.0,0.00024643,30]
[380273516,1755630888684,-834.74,0.00024643,30]
[380273517,1755630888759,-528.08,0.00024643,30]
[380273518,1755630888839,-400.0,0.00024643,30]
[380273519,1755630888919,-1466.98,0.00024643,30]
[380273520,1755630888991,-1667.74,0.00024643,30]
[380273521,1755630889071,-851.95,0.00024643,30]
[380273522,1755630889157,-400.0,0.00024643,30]
[380273523,1755630889236,-3654.91,0.00024643,30]
[380273524,1755630889305,-400.0,0.00024643,30]
[380273525,1755630889374,-585.37,0.00024643,30]
[380273526,1755630889442,-1678.23,0.00024643,30]
[380273527,1755630889508,-500.95,0.00024643,30]
[380273528,1755630889570,-400.0,0.00024643,30]
[380273529,1755630889636,-1296.84,0.00024643,30]
[380273530,1755630889700,-990.17,0.00024643,30]
[380273531,1755630889762,-1498.02,0.00024643,30]
[380273532,1755630889822,-414.92,0.00024643,30]
[380273533,1755630889883,-490.9,0.00024643,30]
[380273534,1755630889942,-1422.74,0.00024643,30]
[380273535,1755630890001,-684.54,0.00024643,30]
[380273536,1755630890061,-837.81,0.00024643,30]
[380273537,1755630890121,-1994.78,0.00024643,30]
[380273538,1755630890184,-400.0,0.00024643,30]
[380273539,1755630890247,-916.66,0.00024643,30]
[380273540,1755630890311,-1483.77,0.00024643,30]
[380273541,1755630890377,-2023.25,0.00024643,30]
[380273542,1755630890443,-400.0,0.00024643,30]
[380273543,1755630890509,-5424.17,0.00024643,30]
[380273544,1755630890572,-827.87,0.00024643,30]
[380273545,1755630890634,-400.0,0.00024643,30]
[380273546,1755630890701,-1863.32,0.00024643,30]
[380273547,1755630890764,-1962.6,0.00024643,30]
[380273548,1755630890831,-539.12,0.00024643,30]
[380273549,1755630890898,-1489.75,0.00024643,30]
[380273550,1755630890965,-1279.96,0.00024643,30]
[380273551,1755630891032,-804.37,0.00024643,30]
[380273552,1755630891102,-879.44,0.00024643,30]
[380273553,1755630891171,-400.0,0.00024643,30]
[380273554,1755630891239,-736.46,0.00024643,30]
[380273555,1755630891307,-400.0,0.00024643,30]
[380273556,1755630891375,-540.41,0.00024643,30]
[380273557,1755630891445,-3004.1,0.00024643,30]
[380273558,1755630891510,-903.83,0.00024643,30]
[380273559,1755630891573,-400.0,0.00024643,30]
[380273560,1755630891918,-400.0,0.00024643,30]
[380273561,1755630891984,-452.13,0.00024643,30]
[380273562,1755630892052,-768.98,0.00024643,30]
[380273563,1755630892119,-1813.68,0.00024643,30]
[380273564,1755630892187,-400.0,0.00024643,30]
[380273565,1755630892256,-400.0,0.00024643,30]
[380273566,1755630892323,-400.0,0.00024643,30]
[380273567,1755630892391,-2223.82,0.00024643,30]
[380273568,1755630892456,-400.0,0.00024643,30]
[380273569,1755630892521,-400.0,0.00024643,30]
[380273570,1755630892588,-2140.5,0.00024643,30]
[380273571,1755630892654,-762.55,0.00024643,30]
[380273572,1755630892724,-2978.0,0.00024643,30]
[380273573,1755630892789,-1352.34,0.00024643,30]
[380273574,1755630892852,-400.0,0.00024643,30]
[380273575,1755630892919,-447.68,0.00024643,30]
[380273576,1755630892982,-2258.26,0.00024643,30]
[380273577,1755630893046,-400.0,0.00024643,30]
[380273578,1755630893113,-400.0,0.00024643,30]
[380273579,1755630893176,-666.94,0.00024643,30]
[380273580,1755630893244,-400.0,0.00024643,30]
[380273581,1755630893310,-400.0,0.00024643,30]
[380273582,1755630893380,-400.0,0.00024643,30]
[380273583,1755630893446,-699.19,0.00024643,30]
[380273584,1755630893510,-1577.31,0.00024643,30]
[380273585,1755630893576,-786.12,0.00024643,30]
[380273586,1755630893643,-1078.83,0.00024643,30]
[380273587,1755630893710,-400.0,0.00024643,30]
[380273588,1755630893777,-685.74,0.00024643,30]
[380273589,1755630893843,-1514.98,0.00024643,30]
[380273590,1755630893909,-686.36,0.00024643,30]
[380273591,1755630893976,-400.0,0.00024643,30]
[380273592,1755630894048,-400.0,0.00024643,30]
[380273593,1755630894118,-400.0,0.00024643,30]
[380273594,1755630894187,-783.3,0.00024643,30]
[380273595,1755630894257,-400.0,0.00024643,30]
[380273596,1755630894326,-927.22,0.00024643,30]
[380273597,1755630894395,-858.73,0.00024643,30]
[380273598,1755630894464,-463.57,0.00024643,30]
[380273599,1755630894531,-638.06,0.00024643,30]
[380273600,1755630894600,-1217.67,0.00024643,30]
[380273601,1755630894666,-1055.26,0.00024643,30]
[380273602,1755630894732,-617.22,0.00024643,30]
[380273603,1755630894796,-654.88,0.00024643,30]
[380273604,1755630894862,-927.42,0.00024643,30]
[380273605,1755630894925,-400.0,0.00024643,30]
[380273606,1755630894990,-877.36,0.00024643,30]
[380273607,1755630895055,-1451.41,0.00024643,30]
[380273608,1755630895126,-400.0,0.00024643,30]
[380273609,1755630895197,-774.15,0.00024643,30]
[380273610,1755630895266,-371.64600564,0.00024643,30]
[380273611,1755630895336,-755.17,0.00024643,30]
[380273612,1755630895413,-1269.4,0.00024643,30]
[380273613,1755630895481,-850.21,0.00024643,30]
[380273614,1755630895547,-400.0,0.00024643,30]
[380273615,1755630895614,-2050.78,0.00024643,30]
[380273616,1755630895688,-1574.07,0.00024643,30]
[380273617,1755630895765,-400.0,0.00024643,30]
[380273618,1755630895839,-3252.62,0.00024643,30]
[380273619,1755630895913,-400.0,0.00024643,30]
[380273620,1755630895986,-893.8,0.00024643,30]
[380273621,1755630896059,-1796.62,0.00024643,30]
[380273622,1755630896135,-2151.13,0.00024643,30]
[380273623,1755630896209,-400.0,0.00024643,30]
[380273624,1755630896279,-400.0,0.00024643,30]
[380273625,1755630896348,-400.0,0.00024643,30]
[380273626,1755630896418,-1524.91,0.00024643,30]
[380273627,1755630896484,-400.0,0.00024643,30]
[380273628,1755630896545,-1268.61,0.00024643,30]
[380273629,1755630896606,-3537.65,0.00024643,30]
[380273630,1755630896669,-400.0,0.00024643,30]
[380273631,1755630896735,-632.78,0.00024643,30]
[380273632,1755630896803,-1091.34,0.00024643,30]
[380273633,1755630896873,-1777.71,0.00024643,30]
[380273634,1755630896949,-1517.91,0.00024643,30]
[380273635,1755630897015,-400.0,0.00024643,30]
[380273636,1755630897083,-449.25,0.00024643,30]
[380273637,1755630897151,-400.0,0.00024643,30]
[380273638,1755630897218,-603.15,0.00024643,30]
[380273639,1755630897287,-1999.87,0.00024643,30]
[380273640,1755630897354,-737.73,0.00024643,30]
[380273641,1755630897422,-759.41,0.00024643,30]
[380273642,1755630897488,-2887.56,0.00024643,30]
[380273643,1755630897557,-1092.33,0.00024643,30]
[380273644,1755630897623,-2399.17,0.00024643,30]
[380273645,1755630897689,-400.0,0.00024643,30]
[380273646,1755630897758,-1154.89,0.00024643,30]
[380273647,1755630897821,-400.0,0.00024643,30]
[380273648,1755630897886,-400.0,0.00024643,30]
[380273649,1755630897949,-540.17,0.00024643,30]
[380273650,1755630898012,-1604.08,0.00024643,30]
[380273651,1755630898080,-400.0,0.00024643,30]
[380273652,1755630898148,-862.64,0.00024643,30]
[380273653,1755630898214,-558.64,0.00024643,30]
[380273654,1755630898282,-464.91,0.00024643,30]
[380273655,1755630898351,-961.11,0.00024643,30]
[380273656,1755630898418,-400.0,0.00024643,30]
[380273657,1755630898489,-996.27,0.00024643,30]
[380273658,1755630898555,-400.0,0.00024643,30]
[380273659,1755630898620,-1174.54,0.00024643,30]
[380273660,1755630898684,-400.0,0.00024643,30]
[380273661,1755630898749,-400.0,0.00024643,30]
[380273662,1755630898811,-400.0,0.00024643,30]
[380273663,1755630898873,-529.25,0.00024643,30]
[380273664,1755630898941,-467.39,0.00024643,30]
[380273665,1755630899009,-1287.79,0.00024643,30]
[380273666,1755630899077,-410.72,0.00024643,30]
[380273667,1755630899146,-645.33,0.00024643,30]
[380273668,1755630899216,-150.0,0.00024658,30]
[380273669,1755630899284,-150.0,0.00024658,30]
[380273670,1755630899353,-150.0,0.00024658,30]
[380273671,1755630899419,-500.0,0.00024658,30]
[380273672,1755630899486,-500.0,0.00024658,30]
[380273673,1755630899549,-150.0,0.00024658,30]
[380273674,1755630899611,-150.0,0.00024658,30]
[380273675,1755630899672,-511.0,0.00024658,30]
[380273676,1755630900116,-150.0,0.00024658,30]
[380273677,1755630900191,-400.0,0.00024917,30]
[380273678,1755630900262,-2472.13,0.00024917,30]
[380273679,1755630900337,-897.36,0.00024917,30]
[380273680,1755630900411,-1779.17,0.00024917,30]
[380273681,1755630900485,-400.0,0.00024917,30]
[380273682,1755630900554,-400.0,0.00024917,30]
[380273683,1755630900624,-400.0,0.00024917,30]
[380273684,1755630900694,-922.03,0.00024917,30]
[380273685,1755630900765,-1077.73,0.00024917,30]
[380273686,1755630900833,-400.0,0.00024917,30]
[380273687,1755630900902,-424.48,0.00024917,30]
[380273688,1755630900967,-400.0,0.00024917,30]
[380273689,1755630901034,-405.71,0.00024917,30]
[380273690,1755630901103,-573.46,0.00024917,30]
[380273691,1755630901173,-1099.82,0.00024917,30]
[380273692,1755630901246,-1032.27,0.00024917,30]
[380273693,1755630901316,-405.59,0.00024917,30]
[380273694,1755630901386,-657.7,0.00024917,30]
[380273695,1755630901458,-2773.84,0.00024917,30]
[380273696,1755630901526,-2616.85,0.00024917,30]
[380273697,1755630901593,-569.65,0.00024917,30]
[380273698,1755630901660,-609.41,0.00024917,30]
[380273699,1755630901729,-523.45,0.00024917,30]
[380273700,1755630901798,-2291.88,0.00024917,30]
[380273701,1755630901866,-1113.47,0.00024917,30]
[380273702,1755630901935,-1609.3,0.00024917,30]
[380273703,1755630902003,-400.0,0.00024917,30]
[380273704,1755630902076,-503.96,0.00024917,30]
[380273705,1755630902147,-1375.63,0.00024917,30]
[380273706,1755630902218,-2391.62,0.00024917,30]
[380273707,1755630902288,-400.0,0.00024917,30]
[380273708,1755630902358,-567.71,0.00024917,30]
[380273709,1755630902428,-976.66,0.00024917,30]
[380273710,1755630902497,-444.55,0.00024917,30]
[380273711,1755630902565,-400.0,0.00024917,30]
[380273712,1755630902636,-1613.2,0.00024917,30]
[380273713,1755630902707,-655.88,0.00024917,30]
[380273714,1755630902779,-400.0,0.00024917,30]
[380273715,1755630902849,-1093.07,0.00024917,30]
[380273716,1755630902917,-1066.76,0.00024917,30]
[380273717,1755630902989,-750.6,0.00024917,30]
[380273718,1755630903069,-400.0,0.00024917,30]
[380273719,1755630903154,-400.0,0.00024917,30]
[380273720,1755630903235,-983.97,0.00024917,30]
[380273721,1755630903314,-1275.26,0.00024917,30]
[380273722,1755630903393,-475.91,0.00024917,30]
[380273723,1755630903475,-2197.7,0.00024917,30]
[380273724,1755630903552,-441.25,0.00024917,30]
[380273725,1755630903629,-1698.15,0.00024917,30]
[380273726,1755630903709,-1243.9,0.00024917,30]
[380273727,1755630903786,-400.0,0.00024917,30]
[380273728,1755630903866,-400.0,0.00024917,30]
[380273729,1755630903945,-400.0,0.00024917,30]
[380273730,1755630904024,-400.0,0.00024917,30]
[380273731,1755630904105,-514.92,0.00024917,30]
[380273732,1755630904189,-400.0,0.00024917,30]
[380273733,1755630904282,-1207.05,0.00024917,30]
[380273734,1755630904365,-400.0,0.00024917,30]
[380273735,1755630904444,-400.0,0.00024917,30]
[380273736,1755630904524,-400.0,0.00024917,30]
[380273737,1755630904604,-633.48,0.00024917,30]
[380273738,1755630904686,-680.06,0.00024917,30]
[380273739,1755630904767,-400.0,0.00024917,30]
[380273740,1755630904848,-523.52,0.00024917,30]
[380273741,1755630904931,-514.84,0.00024917,30]
[380273742,1755630905010,-765.55,0.00024917,30]
[380273743,1755630905091,-207.10288211,0.00024917,30]
[380273744,1755630905172,-2380.79,0.00024917,30]
[380273745,1755630905254,-400.0,0.00024917,30]
[380273746,1755630905335,-2214.91,0.00024917,30]
[380273747,1755630905416,-400.0,0.00024917,30]
[380273748,1755630905500,-1455.64,0.00024917,30]
[380273749,1755630905582,-2318.11,0.00024917,30]
[380273750,1755630905663,-624.94,0.00024917,30]
[380273751,1755630905747,-475.29,0.00024917,30]
[380273752,1755630905826,-275.21111661,0.00024917,30]
[380273753,1755630905905,-480.84,0.00024917,30]
[380273754,1755630905986,-991.43,0.00024917,30]
[380273755,1755630906066,-457.25,0.00024917,30]
[380273756,1755630906146,-435.28,0.00024917,30]
[380273757,1755630906232,-600.44,0.00024917,30]
[380273758,1755630906316,-752.31,0.00024917,30]
[380273759,1755630906395,-840.02,0.00024917,30]
[380273760,1755630906477,-1691.99,0.00024917,30]
[380273761,1755630906549,-1037.15,0.00024917,30]
[380273762,1755630906620,-400.0,0.00024917,30]
[380273763,1755630906691,-1042.17,0.00024917,30]
[380273764,1755630906764,-933.24,0.00024917,30]
[380273765,1755630906837,-400.0,0.00024917,30]
[380273766,1755630906912,-774.29,0.00024917,30]
[380273767,1755630906987,-513.97,0.00024917,30]
[380273768,1755630907064,-400.0,0.00024917,30]
[380273769,1755630907141,-421.43,0.00024917,30]
[380273770,1755630907219,-1791.81,0.00024917,30]
[380273771,1755630907296,-2573.42,0.00024917,30]
[380273772,1755630907373,-674.85,0.00024917,30]
[380273773,1755630907450,-925.02,0.00024917,30]
[380273774,1755630907524,-2152.71,0.00024917,30]
[380273775,1755630907601,-691.76,0.00024917,30]
[380273776,1755630907676,-400.0,0.00024917,30]
[380273777,1755630907758,-1838.62,0.00024917,30]
[380273778,1755630907835,-1032.92,0.00024917,30]
[380273779,1755630907910,-400.0,0.00024917,30]
[380273780,1755630907986,-618.96,0.00024917,30]
[380273781,1755630908063,-400.0,0.00024917,30]
[380273782,1755630908144,-400.0,0.00024917,30]
[380273783,1755630908223,-400.0,0.00024917,30]
[380273784,1755630908302,-2177.09,0.00024917,30]
[380273785,1755630908380,-1491.89,0.00024917,30]
[380273786,1755630908457,-1445.88,0.00024917,30]
[380273787,1755630908532,-400.0,0.00024917,30]
[380273788,1755630908608,-400.0,0.00024917,30]
[380273789,1755630908689,-400.0,0.00024917,30]
[380273790,1755630908767,-1457.27,0.00024917,30]
[380273791,1755630908845,-521.21,0.00024917,30]
[380273792,1755630909155,-808.44,0.00024917,30]
[380273793,1755630909232,-575.21,0.00024917,30]
[380273794,1755630909312,-486.88267385,0.00024917,30]
[380273795,1755630909388,-400.0,0.00024917,30]
[380273796,1755630909465,-400.0,0.00024917,30]
[380273797,1755630909545,-741.66,0.00024917,30]
[380273798,1755630909621,-400.0,0.00024917,30]
[380273799,1755630909697,-1259.81,0.00024917,30]
[380273800,1755630909775,-400.0,0.00024917,30]
[380273801,1755630909853,-400.0,0.00024917,30]
[380273802,1755630909937,-520.65,0.00024917,30]
[380273803,1755630910015,-1250.58,0.00024917,30]
[380273804,1755630910094,-759.93,0.00024917,30]
[380273805,1755630910173,-400.0,0.00024917,30]
[380273806,1755630910252,-400.0,0.00024917,30]
[380273807,1755630910331,-969.64,0.00024917,30]
[380273808,1755630910409,-1990.94,0.00024917,30]
[380273809,1755630910493,-1275.47,0.00024917,30]